bitfinex-derivatives/quotes_BTCF0:USTF0_20260113
["timestamp","ask_amount","ask_price","bid_price","bid_amount"]
[1768340210536,0.01061,94267.0,94258.0,0.07752]
[1768340210741,0.09185212,94271.0,94258.0,0.060177]
[1768340211847,0.09185212,94271.0,94256.0,0.05]
[1768340212541,0.09185212,94276.0,94256.0,0.060611]
[1768340212846,0.09185212,94276.0,94256.0,0.05]
[1768340213048,0.09185212,94274.0,94256.0,0.05]
[1768340213247,0.010608,94282.0,94265.0,0.01061]
[1768340213541,0.09185212,94294.0,94269.0,0.18326795]
[1768340213848,0.010608,94282.0,94269.0,0.18326795]
[1768340214242,0.09185212,94294.0,94263.0,0.09552]
[1768340214243,0.010608,94287.0,94271.0,0.18326795]
[1768340214437,0.010608,94285.0,94272.0,0.18326795]
[1768340214643,0.010608,94283.0,94272.0,0.18326795]
[1768340215960,0.09185212,94294.0,94272.0,0.18326795]
[1768340216147,0.09185212,94294.0,94272.0,0.17926795]
[1768340216551,0.09185212,94294.0,94272.0,0.18987695]
[1768340216854,0.09185212,94294.0,94274.0,0.010609]
[1768340217054,0.09185212,94305.0,94277.0,0.09151396]
[1768340217255,0.09552,94304.0,94277.0,0.09151396]
[1768340217643,0.09185212,94303.0,94277.0,0.09151396]
[1768340218049,0.09185212,94303.0,94279.0,0.09151396]
[1768340218352,0.09185212,94303.0,94280.0,0.09175399]
[1768340220648,0.09185212,94303.0,94282.0,0.09151396]
[1768340220863,0.09552,94305.0,94284.0,0.09175399]
[1768340221052,0.09552,94305.0,94285.0,0.09151396]
[1768340221460,0.09185212,94309.0,94288.0,0.18326795]
[1768340221658,0.09552,94309.0,94290.0,0.18326795]
[1768340221851,0.09552,94309.0,94286.0,0.00015906]
[1768340222453,0.09185212,94307.0,94286.0,0.00015906]
[1768340222646,0.13013907,94307.0,94286.0,0.00015906]
[1768340222951,0.13013907,94307.0,94287.0,0.09552]
[1768340223561,0.13018788,94305.0,94287.0,0.09552]
[1768340223762,0.13018788,94305.0,94287.0,0.09152]
[1768340224954,0.08330167,94308.0,94287.0,0.09152]
[1768340225155,0.13410343,94302.0,94287.0,0.09152]
[1768340225762,0.13410343,94300.0,94287.0,0.09152]
[1768340226354,0.00530262,94293.0,94287.0,0.09152]
[1768340227756,0.00530262,94293.0,94261.0,0.09382882]
[1768340227757,0.13747235,94282.0,94261.0,0.09382882]
[1768340227958,0.04565839,94286.0,94263.0,0.09862036]
[1768340228157,0.04565839,94286.0,94264.0,0.09382882]
[1768340228554,0.00530262,94293.0,94270.0,0.19244918]
[1768340228555,0.13747235,94292.0,94270.0,0.19244918]
[1768340228762,0.13747235,94290.0,94270.0,0.09382882]
[1768340229066,0.09181396,94289.0,94266.0,0.09382882]
[1768340229466,0.1379324,94287.0,94266.0,0.09382882]
[1768340229664,0.1379324,94286.0,94266.0,0.09382882]
[1768340229862,0.1379324,94284.0,94262.0,0.09382882]
[1768340230063,0.1379324,94283.0,94262.0,0.09382882]
[1768340230570,0.1379324,94278.0,94261.0,0.09552]
[1768340230756,0.09181396,94276.0,94261.0,0.09552]
[1768340232952,0.04844885,94274.0,94261.0,0.093766]
[1768340233157,0.18552927,94271.0,94256.0,0.05]
[1768340233366,0.09181396,94271.0,94256.0,0.05]
[1768340234559,0.09371531,94270.0,94256.0,0.05]
[1768340234754,0.14026281,94270.0,94256.0,0.05]
[1768340234964,0.23397812,94270.0,94256.0,0.05]
[1768340235564,0.09181396,94283.0,94260.0,0.19244918]
[1768340235770,0.09181396,94276.0,94260.0,0.09371531]
[1768340236158,0.09181396,94276.0,94256.0,0.14382882]
[1768340236363,0.09181396,94276.0,94260.0,0.09371531]
[1768340236568,0.14114691,94276.0,94256.0,0.05]
[1768340236755,0.09676489,94275.0,94256.0,0.05]
[1768340237268,0.010609,94270.0,94256.0,0.05]
[1768340238568,0.14609784,94285.0,94259.0,0.09360946]
[1768340238770,0.09371531,94270.0,94256.0,0.022]
[1768340238971,0.14609784,94273.0,94256.0,0.022]
[1768340240264,1.47851808,94264.0,94256.0,0.022]
[1768340240574,1.47851808,94264.0,94250.0,0.09552]
[1768340240774,1.47851808,94264.0,94250.0,0.18923531]
[1768340241568,1.47851808,94264.0,94250.0,0.09552]
[1768340242363,1.62384518,94264.0,94250.0,0.09552]
[1768340243075,0.14618161,94257.0,94244.0,0.09552]
[1768340243269,0.09676489,94257.0,94244.0,0.09552]
[1768340243862,0.010611,94254.0,94244.0,0.09552]
[1768340244069,0.14618161,94256.0,94241.0,0.05]
[1768340244272,0.14618161,94254.0,94241.0,0.05]
[1768340244463,0.09676489,94254.0,94241.0,0.05]
[1768340245368,0.010612,94251.0,94241.0,0.05]
[1768340246475,0.010612,94251.0,94241.0,0.033]
[1768340246875,0.02093193,94243.0,94241.0,0.033]
[1768340247072,0.010611,94256.0,94242.0,0.09127297]
[1768340247470,0.02346352,94256.0,94242.0,0.09127297]
[1768340247672,0.010611,94254.0,94242.0,0.09127297]
[1768340247865,0.01285252,94256.0,94242.0,0.09127297]
[1768340248070,0.010611,94257.0,94242.0,0.09127297]
[1768340248374,0.010611,94255.0,94242.0,0.09127297]
[1768340250477,0.010611,94253.0,94242.0,0.09127297]
[1768340250774,0.02164707,94244.0,94242.0,0.09127297]
[1768340251681,0.010611,94253.0,94242.0,0.09127297]
[1768340252575,0.02085282,94244.0,94242.0,0.09127297]
[1768340252782,0.010611,94254.0,94242.0,0.09127297]
[1768340253874,0.010611,94253.0,94242.0,0.06227297]
[1768340254074,0.02163097,94244.0,94242.0,0.06227297]
[1768340254275,0.010611,94255.0,94242.0,0.15588243]
[1768340254475,0.010611,94253.0,94242.0,0.15588243]
[1768340255285,0.02163097,94244.0,94242.0,0.15588243]
[1768340255583,0.010611,94253.0,94241.0,0.033]
[1768340256281,0.010612,94252.0,94241.0,0.033]
[1768340256669,0.01250762,94256.0,94241.0,0.033]
[1768340256670,0.10714634,94256.0,94241.0,0.033]
[1768340256875,0.09371531,94251.0,94234.0,0.09815129]
[1768340257076,0.010612,94246.0,94234.0,0.09815129]
[1768340257283,0.01250762,94256.0,94237.0,0.09815129]
[1768340257484,0.09463872,94257.0,94238.0,0.09815129]
[1768340257786,0.0208148,94247.0,94238.0,0.09815129]
[1768340258676,0.01246466,94256.0,94242.0,0.09815129]
[1768340258987,0.010612,94251.0,94244.0,0.09815129]
[1768340259172,0.010612,94251.0,94243.0,0.09848162]
[1768340259378,0.010612,94251.0,94241.0,0.09815129]
[1768340259887,0.010611,94253.0,94241.0,0.09815129]
[1768340260279,0.010611,94254.0,94241.0,0.09815129]
[1768340260888,0.0123316,94256.0,94241.0,0.09815129]
[1768340261090,0.09371531,94260.0,94241.0,0.09815129]
[1768340261585,0.010612,94250.0,94241.0,0.09815129]
[1768340261787,0.010612,94250.0,94241.0,0.06415129]
[1768340262688,0.010611,94252.0,94241.0,0.06415129]
[1768340263486,0.010612,94250.0,94241.0,0.06415129]
[1768340264281,0.010612,94248.0,94239.0,0.09815129]
[1768340264476,0.010612,94248.0,94240.0,0.1918666]
[1768340264676,0.010612,94248.0,94241.0,0.09815129]
[1768340264876,0.010611,94253.0,94241.0,0.09815129]
[1768340265674,0.01294944,94260.0,94242.0,0.010612]
[1768340265883,0.01061,94267.0,94253.0,0.19663291]
[1768340266079,0.01061,94265.0,94257.0,0.29034822]
[1768340266278,0.10086375,94273.0,94257.0,0.05329769]
[1768340266477,0.01061,94264.0,94257.0,0.05329769]
[1768340267186,0.10086375,94273.0,94257.0,0.05329769]
[1768340267383,0.00530375,94273.0,94260.0,0.09371531]
[1768340267588,0.09556,94278.0,94260.0,0.09371531]
[1768340267783,0.09556,94278.0,94250.0,0.10432731]
[1768340268187,0.09556,94278.0,94251.0,0.19663291]
[1768340268690,0.09556,94278.0,94253.0,0.19663291]
[1768340268877,0.02320505,94277.0,94254.0,0.19663291]
[1768340269078,0.01259605,94277.0,94260.0,0.1918666]
[1768340269280,0.09556,94286.0,94268.0,0.09815129]
[1768340269479,0.09556,94286.0,94268.0,0.02215129]
[1768340269674,0.19002115,94285.0,94262.0,0.09848162]
[1768340269979,0.09538243,94284.0,94262.0,0.09848162]
[1768340270188,0.09371531,94280.0,94262.0,0.09848162]
[1768340270489,0.18909774,94280.0,94255.0,0.09848162]
[1768340270680,0.28373646,94280.0,94255.0,0.09848162]
[1768340271274,0.19002115,94279.0,94255.0,0.09848162]
[1768340271478,0.09538243,94278.0,94256.0,0.09815129]
[1768340273993,0.19002115,94278.0,94256.0,0.09815129]
[1768340275498,0.09538243,94277.0,94256.0,0.09815129]
[1768340275888,0.09538243,94277.0,94257.0,0.09815129]
[1768340276197,0.01239341,94285.0,94265.0,0.19663291]
[1768340276388,0.09538243,94290.0,94271.0,0.09815129]
[1768340276801,0.01280945,94290.0,94280.0,0.09371531]
[1768340276989,0.09463872,94299.0,94280.0,0.1918666]
[1768340277186,0.09463872,94299.0,94280.0,0.1808666]
[1768340277392,0.08416721,94298.0,94280.0,0.1808666]
[1768340277592,0.01783797,94293.0,94280.0,0.1808666]
[1768340278292,0.01783797,94293.0,94281.0,0.09815129]
[1768340279296,0.01783797,94293.0,94277.0,0.09815129]
[1768340280797,0.01783797,94293.0,94274.0,0.09848162]
[1768340281200,0.01783797,94293.0,94275.0,0.09815129]
[1768340281998,0.01783797,94293.0,94267.0,0.09552]
[1768340281999,0.09463872,94306.0,94284.0,0.09815129]
[1768340282303,0.18835403,94310.0,94291.0,0.09815129]
[1768340282601,0.1784147,94310.0,94291.0,0.09815129]
[1768340283503,0.1909244,94310.0,94291.0,0.09815129]
[1768340283794,0.0125097,94310.0,94291.0,0.09848162]
[1768340283994,0.0053015,94313.0,94301.0,0.09815129]
[1768340284199,0.0053015,94313.0,94300.0,0.09371531]
[1768340284601,0.0053015,94313.0,94297.0,0.09815129]
[1768340284997,0.0053015,94313.0,94296.0,0.09848162]
[1768340284998,0.0053015,94313.0,94300.0,0.09371531]
[1768340285186,0.0053015,94313.0,94296.0,0.09848162]
[1768340285703,0.01791096,94313.0,94296.0,0.09848162]
[1768340286204,0.01791096,94313.0,94300.0,0.09371531]
[1768340286905,0.01791096,94313.0,94301.0,0.09547695]
[1768340287789,0.01791096,94313.0,94302.0,0.09615811]
[1768340287994,0.01791096,94313.0,94301.0,0.09547695]
[1768340287995,0.01791096,94313.0,94296.0,0.19163506]
[1768340288206,0.01791096,94313.0,94297.0,0.09547695]
[1768340288408,0.01791096,94313.0,94298.0,0.09547695]
[1768340289505,0.01791096,94313.0,94300.0,0.09547695]
[1768340289709,0.01791096,94313.0,94302.0,0.09547695]
[1768340289896,0.18880856,94325.0,94302.0,0.09547695]
[1768340290102,0.18880856,94324.0,94302.0,0.09547695]
[1768340290305,0.09371531,94320.0,94302.0,0.09547695]
[1768340290806,0.09387437,94320.0,94302.0,0.09547695]
[1768340291404,0.00015906,94320.0,94302.0,0.09547695]
[1768340291607,0.08699535,94320.0,94302.0,0.09547695]
[1768340292102,0.08699535,94320.0,94304.0,0.19163506]
[1768340292408,0.08699535,94320.0,94306.0,0.09547695]
[1768340292598,0.08699535,94320.0,94306.0,0.07847695]
[1768340292798,0.08699535,94320.0,94305.0,0.09615811]
[1768340292997,0.00015906,94320.0,94300.0,0.18987342]
[1768340293704,0.00015906,94320.0,94300.0,0.09615811]
[1768340294605,0.00015906,94320.0,94301.0,0.09547695]
[1768340294802,0.00015906,94320.0,94303.0,0.09547695]
[1768340295006,0.00015906,94320.0,94304.0,0.09547695]
[1768340297310,0.00015906,94320.0,94300.0,0.09375953]
[1768340297604,0.00015906,94320.0,94301.0,0.09016416]
[1768340298502,0.00015906,94320.0,94301.0,0.18392369]
[1768340298698,0.00015906,94320.0,94302.0,0.09016416]
[1768340299504,0.00015906,94320.0,94303.0,0.10436553]
[1768340299811,0.00015906,94320.0,94305.0,0.09375953]
[1768340300005,0.00015906,94320.0,94306.0,0.09016416]
[1768340300210,0.00015906,94320.0,94306.0,0.18392369]
[1768340300413,0.00015906,94320.0,94307.0,0.09016416]
[1768340300708,0.00015906,94320.0,94307.0,0.18392369]
[1768340300911,0.00015906,94320.0,94307.0,0.09375953]
[1768340301810,0.01267405,94324.0,94307.0,0.09375953]
[1768340302012,0.09552,94330.0,94307.0,0.09375953]
[1768340302518,0.09552,94330.0,94309.0,0.09016416]
[1768340303011,0.10810738,94330.0,94309.0,0.09016416]
[1768340304513,0.10810738,94330.0,94308.0,0.09375953]
[1768340304714,0.19354361,94330.0,94308.0,0.09375953]
[1768340305213,0.09802361,94330.0,94313.0,0.09375953]
[1768340305403,0.09548,94332.0,94304.0,0.09567906]
[1768340306313,0.09545624,94331.0,94306.0,0.010605]
[1768340306613,0.09545624,94331.0,94307.0,0.09016416]
[1768340306913,0.01395404,94332.0,94313.0,0.09016416]
[1768340307109,0.08986038,94333.0,94313.0,0.09016416]
[1768340307318,0.08986038,94333.0,94313.0,0.18392369]
[1768340307507,0.08986038,94333.0,94314.0,0.09016416]
[1768340307707,0.08986038,94333.0,94315.0,0.09016416]
[1768340308018,0.08986038,94333.0,94315.0,0.06916416]
[1768340308609,0.00530037,94333.0,94316.0,0.09375953]
[1768340308811,0.00530037,94333.0,94318.0,0.09375953]
[1768340309514,0.01900957,94333.0,94318.0,0.09375953]
[1768340310117,0.01900957,94333.0,94319.0,0.09016416]
[1768340310914,0.01900957,94333.0,94320.0,0.09016416]
[1768340311113,0.09545624,94343.0,94320.0,0.09016416]
[1768340311319,0.09548,94342.0,94322.0,0.09016416]
[1768340311619,0.01368972,94342.0,94323.0,0.09016416]
[1768340311811,0.17821807,94343.0,94323.0,0.09016416]
[1768340312207,0.17821807,94343.0,94323.0,0.09032322]
[1768340312408,0.19194815,94343.0,94323.0,0.09032322]
[1768340312610,0.09545624,94341.0,94323.0,0.09032322]
[1768340313014,0.09649191,94343.0,94323.0,0.18408275]
[1768340313319,0.09545624,94348.0,94324.0,0.09016416]
[1768340313320,0.09823826,94347.0,94324.0,0.09016416]
[1768340313621,0.09545624,94346.0,94325.0,0.09016416]
[1768340313819,0.09545624,94346.0,94326.0,0.09016416]
[1768340314323,0.17853765,94346.0,94326.0,0.09016416]
[1768340315319,0.09438224,94345.0,94326.0,0.09016416]
[1768340315716,0.09438224,94345.0,94326.0,0.06116416]
[1768340317221,0.09438224,94344.0,94326.0,0.06116416]
[1768340317413,0.09438224,94343.0,94323.0,0.00015906]
[1768340317717,0.19260623,94342.0,94323.0,0.00015906]
[1768340318019,0.19260623,94327.0,94300.0,0.09724611]
[1768340318222,0.09438224,94325.0,94303.0,0.0941058]
[1768340318420,0.09438224,94324.0,94303.0,0.0941058]
[1768340318621,0.09438224,94323.0,94303.0,0.0941058]
[1768340322020,0.09438224,94323.0,94304.0,0.0941058]
[1768340323623,0.09438224,94323.0,94313.0,0.0053015]
[1768340324524,0.09438224,94323.0,94304.0,0.0941058]
[1768340331648,0.0945413,94323.0,94304.0,0.0761058]
[1768340334437,0.09438224,94318.0,94297.0,0.28683191]
[1768340334623,0.09438224,94316.0,94297.0,0.09548]
[1768340334934,0.09822399,94313.0,94297.0,0.09548]
[1768340335137,0.09438224,94312.0,94297.0,0.09548]
[1768340335838,0.19260623,94312.0,94297.0,0.09548]
[1768340336134,0.09438224,94311.0,94297.0,0.09548]
[1768340337438,0.19260623,94311.0,94297.0,0.09548]
[1768340339439,0.19260623,94311.0,94297.0,0.07248]
[1768340340233,0.19260623,94311.0,94293.0,0.00530262]
[1768340341136,0.09822399,94309.0,94293.0,0.00530262]
[1768340341337,0.09822399,94307.0,94293.0,0.00530262]
[1768340341537,0.09438224,94302.0,94279.0,0.0941058]
[1768340341738,0.19260623,94301.0,94280.0,0.1895858]
[1768340342740,0.19260623,94301.0,94281.0,0.0941058]
[1768340343243,0.09438224,94299.0,94280.0,0.09548]
[1768340343539,0.09822399,94298.0,94280.0,0.09548]
[1768340343730,0.19260623,94298.0,94280.0,0.09548]
[1768340344429,0.09438224,94298.0,94280.0,0.1895858]
[1768340347045,0.09438224,94298.0,94280.0,0.1625858]
[1768340350250,0.09438224,94298.0,94281.0,0.09438652]
[1768340354741,0.09438224,94298.0,94281.0,0.07038652]
[1768340357253,0.09366682,94300.0,94281.0,0.08099452]
[1768340358346,0.09548,94310.0,94281.0,0.08099452]
[1768340358347,0.09566477,94302.0,94281.0,0.08099452]
[1768340358557,0.19045049,94302.0,94281.0,0.07038652]
[1768340358750,0.19045049,94302.0,94281.0,0.08099452]
[1768340358751,0.09566477,94301.0,94281.0,0.08099452]
[1768340359756,0.09366682,94300.0,94281.0,0.07038652]
[1768340360154,0.09366682,94300.0,94282.0,0.010608]
[1768340360354,0.09366682,94300.0,94281.0,0.07038652]
[1768340360355,0.18933159,94300.0,94281.0,0.07038652]
[1768340360756,0.09566477,94299.0,94281.0,0.07038652]
[1768340361151,0.09566477,94299.0,94281.0,0.08099452]
[1768340361349,0.09566477,94299.0,94282.0,0.010608]
[1768340361550,0.09566477,94299.0,94281.0,0.07038652]
[1768340361750,0.09582383,94299.0,94281.0,0.07038652]
[1768340362461,0.09582383,94299.0,94281.0,0.03038652]
[1768340364855,0.09566477,94295.0,94280.0,0.06848]
[1768340365056,0.19045049,94295.0,94280.0,0.06848]
[1768340366549,0.19045049,94294.0,94280.0,0.06848]
[1768340366752,0.09566477,94292.0,94280.0,0.06848]
[1768340370263,0.09566477,94292.0,94280.0,0.05048]
[1768340371066,0.19045049,94290.0,94280.0,0.03934592]
[1768340371364,0.09566477,94289.0,94280.0,0.03934592]
[1768340373257,0.09566477,94296.0,94280.0,0.03934592]
[1768340374052,0.19045049,94296.0,94280.0,0.03934592]
[1768340374257,0.09566477,94295.0,94280.0,0.03934592]
[1768340374563,0.19045049,94295.0,94280.0,0.03934592]
[1768340374758,0.09566477,94294.0,94280.0,0.03934592]
[1768340375161,0.09566477,94294.0,94280.0,0.14362074]
[1768340375467,0.00015906,94299.0,94284.0,0.04523264]
[1768340375962,0.00015906,94299.0,94289.0,0.09366682]
[1768340376158,0.09447674,94305.0,94289.0,0.09366682]
[1768340377467,0.09447674,94305.0,94287.0,0.04523264]
[1768340377870,0.09447674,94305.0,94287.0,0.03923264]
[1768340378369,0.18677733,94305.0,94285.0,0.010608]
[1768340378869,0.09447674,94304.0,94285.0,0.010608]
[1768340379058,0.18677733,94304.0,94285.0,0.010608]
[1768340379260,0.18677733,94304.0,94283.0,0.09547235]
[1768340379570,0.18677733,94304.0,94290.0,0.09366682]
[1768340379770,0.18677733,94302.0,94282.0,0.00015906]
[1768340380075,0.18677733,94302.0,94282.0,0.0398032]
[1768340380369,0.09447674,94301.0,94282.0,0.0398032]
[1768340382871,0.09447674,94301.0,94283.0,0.010608]
[1768340383369,0.09447674,94301.0,94285.0,0.010608]
[1768340385263,0.18677733,94301.0,94285.0,0.010608]
[1768340385673,0.18677733,94301.0,94285.0,0.020608]
[1768340385862,0.18677733,94301.0,94282.0,0.0398032]
[1768340386168,0.18677733,94301.0,94282.0,0.1198032]
[1768340386464,0.18677733,94301.0,94287.0,0.010608]
[1768340386669,0.09447674,94301.0,94284.0,0.010608]
[1768340386870,0.09447674,94301.0,94284.0,0.020608]
[1768340387571,0.18677733,94301.0,94284.0,0.010608]
[1768340389571,0.18677733,94301.0,94284.0,0.060608]
[1768340389772,0.18677733,94301.0,94284.0,0.010608]
[1768340389773,0.09447674,94300.0,94284.0,0.010608]
[1768340391962,0.18677733,94300.0,94284.0,0.010608]
[1768340392159,0.18677733,94300.0,94285.0,0.010608]
[1768340393562,0.18677733,94300.0,94283.0,0.09552]
[1768340393563,0.18677733,94300.0,94283.0,0.091128]
[1768340393763,0.09447674,94299.0,94283.0,0.151128]
[1768340394468,0.09447674,94297.0,94283.0,0.151128]
[1768340394674,0.09447674,94297.0,94284.0,0.010608]
[1768340397278,0.09447674,94297.0,94283.0,0.091128]
[1768340397469,0.18677733,94297.0,94283.0,0.091128]
[1768340397677,0.09447674,94296.0,94283.0,0.091128]
[1768340398063,0.09447674,94295.0,94283.0,0.091128]
[1768340398273,0.09447674,94293.0,94283.0,0.091128]
[1768340401066,0.09447674,94290.0,94276.0,0.09552]
[1768340401266,0.18677733,94283.0,94273.0,0.00530375]
[1768340401472,0.09447674,94276.0,94259.0,0.09552]
[1768340401676,0.09447674,94274.0,94259.0,0.09552]
[1768340402075,0.09230059,94268.0,94253.0,0.00530487]
[1768340402267,0.09230059,94266.0,94255.0,0.09552]
[1768340402666,0.09447674,94267.0,94255.0,0.09552]
[1768340403074,0.09447674,94267.0,94255.0,0.106131]
[1768340403669,0.09447674,94267.0,94255.0,0.09552]
[1768340405072,0.01061,94264.0,94255.0,0.09552]
[1768340405468,0.10508674,94267.0,94255.0,0.09552]
[1768340406482,0.01061,94265.0,94255.0,0.09552]
[1768340407182,0.01061,94263.0,94255.0,0.09552]
[1768340407479,0.10946229,94266.0,94255.0,0.09552]
[1768340407671,0.01061,94263.0,94255.0,0.09552]
[1768340408073,0.09885229,94266.0,94255.0,0.09552]
[1768340408875,0.09885229,94264.0,94255.0,0.09552]
[1768340409265,0.09885229,94264.0,94253.0,0.00530487]
[1768340409868,0.01504969,94274.0,94157.0,0.19030671]
[1768340409869,0.09522618,94261.0,94243.0,0.09552]
[1768340410073,0.09522618,94261.0,94244.0,0.010612]
[1768340410584,0.010611,94259.0,94243.0,0.106132]
[1768340411279,0.010611,94255.0,94243.0,0.09552]
[1768340412182,0.010611,94258.0,94243.0,0.09552]
[1768340412384,0.010611,94256.0,94243.0,0.09552]
[1768340413488,0.010611,94255.0,94243.0,0.09552]
[1768340413784,0.19407847,94260.0,94243.0,0.09552]
[1768340413987,0.20468947,94260.0,94243.0,0.09552]
[1768340414187,0.010611,94258.0,94243.0,0.09552]
[1768340415588,0.09522618,94255.0,94238.0,0.09552]
[1768340415780,0.010612,94251.0,94238.0,0.09552]
[1768340416182,0.010612,94249.0,94238.0,0.09552]
[1768340416688,0.010612,94252.0,94238.0,0.09552]
[1768340417086,0.09083291,94258.0,94239.0,0.09833305]
[1768340417386,0.09083291,94262.0,94239.0,0.09450273]
[1768340417590,0.010611,94256.0,94239.0,0.09450273]
[1768340417982,0.010611,94254.0,94239.0,0.09450273]
[1768340418585,0.010611,94257.0,94239.0,0.10511573]
[1768340419092,0.19696391,94260.0,94241.0,0.010613]
[1768340419281,0.010611,94258.0,94241.0,0.010613]
[1768340419482,0.18635291,94260.0,94240.0,0.09833305]
[1768340419682,0.010611,94254.0,94240.0,0.09833305]
[1768340420187,0.010611,94252.0,94239.0,0.09450273]
[1768340421483,0.010611,94255.0,94239.0,0.09450273]
[1768340422695,0.010611,94253.0,94239.0,0.09450273]
[1768340424293,0.09083291,94258.0,94238.0,0.09552]
[1768340424500,0.10144491,94251.0,94238.0,0.09552]
[1768340424881,0.010612,94251.0,94238.0,0.05952]
[1768340425298,0.010612,94249.0,94238.0,0.05952]
[1768340425494,0.010612,94249.0,94233.0,0.01592]
[1768340426392,0.010612,94247.0,94233.0,0.01592]
[1768340426595,0.18790647,94252.0,94233.0,0.005306]
[1768340426796,0.18790647,94252.0,94233.0,0.10363905]
[1768340426995,0.186807,94291.0,94235.0,0.09833305]
[1768340427188,0.010612,94250.0,94235.0,0.09833305]
[1768340427692,0.01077014,94252.0,94235.0,0.19283578]
[1768340427896,0.00015914,94252.0,94238.0,0.19283578]
[1768340428095,0.010612,94249.0,94239.0,0.19283578]
[1768340428392,0.01061,94267.0,94233.0,0.005306]
[1768340428393,0.010612,94251.0,94246.0,0.09833305]
[1768340428598,0.09552,94257.0,94247.0,0.09450273]
[1768340428795,0.010612,94252.0,94242.0,0.09833305]
[1768340429102,0.010612,94252.0,94242.0,0.19283578]
[1768340429299,0.010612,94250.0,94242.0,0.09450273]
[1768340429498,0.010612,94248.0,94242.0,0.09450273]
[1768340429897,0.09552,94257.0,94242.0,0.09450273]
[1768340430203,0.010612,94249.0,94242.0,0.09450273]
[1768340431102,0.010612,94247.0,94242.0,0.09450273]
[1768340431995,0.010612,94251.0,94245.0,0.19283578]
[1768340432301,0.010612,94251.0,94245.0,0.09450273]
[1768340432598,0.010612,94251.0,94245.0,0.07350273]
[1768340432794,0.010612,94251.0,94242.0,0.09833305]
[1768340433400,0.09556,94260.0,94242.0,0.09833305]
[1768340434204,0.01061,94261.0,94247.0,0.09833305]
[1768340434592,0.09556,94264.0,94248.0,0.19283578]
[1768340434896,0.010611,94256.0,94248.0,0.19283578]
[1768340435094,0.010611,94256.0,94248.0,0.09450273]
[1768340435690,0.01061,94267.0,94249.0,0.19476004]
[1768340435896,0.01061,94257.0,94241.0,0.09556]
[1768340437803,0.01061,94257.0,94242.0,0.19476004]
[1768340437999,0.01061,94257.0,94244.0,0.09819625]
[1768340438599,0.01061,94255.0,94241.0,0.09556]
[1768340439004,0.18661199,94259.0,94241.0,0.09556]
[1768340439206,0.01061,94255.0,94241.0,0.09556]
[1768340439602,0.01061,94255.0,94242.0,0.09819625]
[1768340439807,0.09643752,94263.0,94242.0,0.09819625]
[1768340439999,0.01061,94255.0,94243.0,0.09819625]
[1768340440305,0.01061,94255.0,94242.0,0.09656379]
[1768340440495,0.09017447,94271.0,94248.0,0.09656379]
[1768340440696,0.09556,94271.0,94248.0,0.09656379]
[1768340441105,0.09556,94271.0,94253.0,0.00530487]
[1768340441592,0.28217199,94271.0,94253.0,0.00530487]
[1768340442406,0.09643752,94270.0,94253.0,0.00530487]
[1768340442796,0.09643752,94270.0,94249.0,0.09819625]
[1768340443705,0.18573447,94271.0,94251.0,0.09656379]
[1768340443895,0.09017447,94271.0,94252.0,0.09819625]
[1768340444300,0.09556,94270.0,94252.0,0.09819625]
[1768340445911,0.28217199,94270.0,94251.0,0.05142296]
[1768340446410,0.28217199,94270.0,94241.0,0.09556]
[1768340446910,0.09643752,94269.0,94241.0,0.09556]
[1768340447800,0.09643752,94269.0,94242.0,0.19476004]
[1768340447999,0.18661199,94269.0,94246.0,0.09819625]
[1768340448599,0.09017447,94268.0,94246.0,0.09819625]
[1768340451720,0.09017447,94268.0,94247.0,0.09819625]
[1768340453316,0.10174127,94273.0,94251.0,0.09819625]
[1768340453509,0.00530375,94273.0,94253.0,0.09819625]
[1768340453715,0.09547822,94273.0,94254.0,0.09656379]
[1768340455717,0.09547822,94273.0,94254.0,0.07556379]
[1768340455918,0.09547822,94273.0,94253.0,0.09819625]
[1768340458719,0.09547822,94273.0,94254.0,0.09819625]
[1768340459020,0.00530375,94273.0,94255.0,0.09819625]
[1768340459818,0.00530375,94273.0,94255.0,0.19476004]
[1768340460016,0.00530375,94273.0,94257.0,0.09819625]
[1768340460218,0.00530375,94273.0,94258.0,0.19476004]
[1768340460513,0.18661199,94291.0,94264.0,0.09656379]
[1768340460718,0.09556,94290.0,94266.0,0.09656379]
[1768340461016,0.18661199,94288.0,94267.0,0.09819625]
[1768340461221,0.09017447,94287.0,94267.0,0.09819625]
[1768340461521,0.09017447,94286.0,94267.0,0.09819625]
[1768340462113,0.09017447,94285.0,94267.0,0.09819625]
[1768340463511,0.09017447,94285.0,94267.0,0.08719625]
[1768340464725,0.09017447,94284.0,94261.0,0.09656379]
[1768340465126,0.17890287,94290.0,94265.0,0.09096559]
[1768340465127,0.09408086,94290.0,94265.0,0.09096559]
[1768340465327,0.09408086,94288.0,94265.0,0.09096559]
[1768340465527,0.09408086,94285.0,94264.0,0.09364538]
[1768340465917,0.09408086,94284.0,94264.0,0.09364538]
[1768340466628,0.09408086,94284.0,94263.0,0.09556]
[1768340466629,0.09534996,94289.0,94267.0,0.09364538]
[1768340466823,0.18943082,94289.0,94267.0,0.09364538]
[1768340467128,0.18943082,94287.0,94267.0,0.09364538]
[1768340467323,0.09408086,94286.0,94267.0,0.09364538]
[1768340470833,0.09552,94289.0,94270.0,0.09364538]
[1768340471329,0.09552,94289.0,94270.0,0.07764538]
[1768340471528,0.11015931,94291.0,94270.0,0.07764538]
[1768340471728,0.01607845,94291.0,94271.0,0.09096559]
[1768340471930,0.13324039,94312.0,94271.0,0.09096559]
[1768340471931,0.09534996,94308.0,94271.0,0.09096559]
[1768340472145,0.05705232,94311.0,94302.0,0.09374529]
[1768340472322,0.05705232,94311.0,94303.0,0.09552]
[1768340472526,0.01567114,94313.0,94303.0,0.09552]
[1768340472831,0.09534996,94322.0,94303.0,0.09552]
[1768340473222,0.09164115,94333.0,94303.0,0.09552]
[1768340473223,0.09534996,94321.0,94303.0,0.09552]
[1768340473625,0.11107373,94321.0,94303.0,0.09552]
[1768340474130,0.09534996,94320.0,94303.0,0.09552]
[1768340475422,0.18897622,94320.0,94303.0,0.09552]
[1768340476839,0.09534996,94320.0,94303.0,0.09552]
[1768340477144,0.18897622,94320.0,94303.0,0.09552]
[1768340479043,0.18897622,94320.0,94303.0,0.06051999]
[1768340481431,0.09348005,94319.0,94303.0,0.06051999]
[1768340481832,0.09348005,94318.0,94303.0,0.06051999]
[1768340482032,0.09348005,94317.0,94303.0,0.06051999]
[1768340482240,0.09348005,94316.0,94303.0,0.06051999]
[1768340483645,0.09362626,94313.0,94303.0,0.06051999]
[1768340483945,0.18710631,94313.0,94303.0,0.03428603]
[1768340486631,0.18710631,94313.0,94303.0,0.01928603]
[1768340487034,0.09348005,94312.0,94303.0,0.01928603]
[1768340492849,0.09348005,94310.0,94298.0,0.09552]